bitfinex-derivatives/quotes_BTCF0:USTF0_20250919
["timestamp","ask_amount","ask_price","bid_price","bid_amount"]
[1758276567509,1.32871791,116560.0,116550.0,0.001]
[1758276567709,2.11083791,116560.0,116550.0,0.001]
[1758276570414,1.32871791,116560.0,116550.0,0.001]
[1758276570623,2.11083791,116560.0,116550.0,0.001]
[1758276571913,1.32871791,116560.0,116550.0,0.001]
[1758276572114,2.11083791,116560.0,116550.0,0.001]
[1758276572314,1.32871791,116560.0,116550.0,0.001]
[1758276572521,2.11079791,116560.0,116550.0,0.001]
[1758276573121,1.32871791,116560.0,116550.0,0.001]
[1758276573421,2.11079791,116560.0,116550.0,0.001]
[1758276575119,1.32871791,116560.0,116550.0,0.001]
[1758276575615,2.11079791,116560.0,116550.0,0.001]
[1758276576420,1.32871791,116560.0,116550.0,0.001]
[1758276576623,2.11079791,116560.0,116550.0,0.001]
[1758276578320,1.32871791,116560.0,116550.0,0.001]
[1758276578524,2.11079791,116560.0,116550.0,0.001]
[1758276579433,1.86079791,116560.0,116550.0,0.001]
[1758276579726,1.34159203,116560.0,116550.0,0.001]
[1758276579927,2.12367203,116560.0,116550.0,0.001]
[1758276582431,2.12363203,116560.0,116550.0,0.001]
[1758276583728,1.34159203,116560.0,116550.0,0.001]
[1758276583925,2.12363203,116560.0,116550.0,0.001]
[1758276584322,1.34159203,116560.0,116550.0,0.001]
[1758276584528,2.12363203,116560.0,116550.0,0.001]
[1758276589338,2.1499126,116560.0,116550.0,0.001]
[1758276590641,1.3678726,116560.0,116550.0,0.001]
[1758276590835,2.1498326,116560.0,116550.0,0.001]
[1758276591542,1.3678726,116560.0,116550.0,0.001]
[1758276591742,2.1498326,116560.0,116550.0,0.001]
[1758276597248,1.3678726,116560.0,116550.0,0.001]
[1758276597449,2.1497926,116560.0,116550.0,0.001]
[1758276600648,1.3678726,116560.0,116550.0,0.001]
[1758276600949,2.1497526,116560.0,116550.0,0.001]
[1758276601649,1.3678726,116560.0,116550.0,0.001]
[1758276601844,2.1497526,116560.0,116550.0,0.001]
[1758276604048,2.14976575,116560.0,116550.0,0.001]
[1758276607549,2.14972575,116560.0,116550.0,0.001]
[1758276607954,3.95752575,116560.0,116550.0,0.001]
[1758276641777,3.69499023,116560.0,116550.0,0.001]
[1758276643476,4.05579023,116560.0,116550.0,0.001]
[1758276648074,3.27395023,116560.0,116550.0,0.001]
[1758276648267,2.74885885,116560.0,116550.0,0.27387]
[1758276648473,3.53049885,116560.0,116550.0,0.27387]
[1758276648773,3.40799082,116560.0,116550.0,0.28754]
[1758276648966,3.0626491,116560.0,116550.0,0.28754]
[1758276649168,3.32519479,116560.0,116550.0,0.28754]
[1758276649368,3.0626491,116560.0,116550.0,0.28754]
[1758276649567,3.32519479,116560.0,116550.0,0.28754]
[1758276650875,2.54151479,116560.0,116550.0,0.28754]
[1758276651176,3.32535479,116560.0,116550.0,0.28754]
[1758276654280,3.32535479,116560.0,116550.0,0.30521324]
[1758276655583,3.32535479,116560.0,116550.0,0.31398737]
[1758276655975,2.96455479,116560.0,116550.0,0.30521324]
[1758276656186,1.9181691,116560.0,116550.0,0.65351453]
[1758276656375,2.7019691,116560.0,116550.0,0.65351453]
[1758276656876,2.6803491,116560.0,116550.0,0.65351453]
[1758276657885,2.6803491,116560.0,116550.0,1.59431453]
[1758276658182,2.6803491,116560.0,116550.0,1.66365435]
[1758276658383,2.5946,116560.0,116550.0,1.67235568]
[1758276658773,2.5946,116560.0,116550.0,1.40980999]
[1758276658977,2.5946,116560.0,116550.0,1.64235568]
[1758276660485,2.5946,116560.0,116550.0,1.67235568]
[1758276661372,2.5946,116560.0,116550.0,1.64235568]
[1758276661579,2.5946,116560.0,116550.0,1.90235568]
[1758276661880,2.5946,116560.0,116550.0,1.68235568]
[1758276662880,2.5946,116560.0,116550.0,1.41980999]
[1758276663085,2.5946,116560.0,116550.0,1.68235568]
[1758276663586,0.7868,116560.0,116550.0,1.68235568]
[1758276663786,0.7868,116560.0,116550.0,1.95235568]
[1758276664087,0.7868,116560.0,116550.0,2.21490137]
[1758276664295,0.7868,116560.0,116550.0,1.95235568]
[1758276667083,0.7868,116560.0,116550.0,2.21490137]
[1758276668081,0.003,116560.0,116550.0,2.21490137]
[1758276668287,0.003,116560.0,116550.0,2.99778137]
[1758276668484,0.0001,116570.0,116560.0,0.25165589]
[1758276668783,0.0001,116580.0,116570.0,0.13714794]
[1758276668989,0.0001,116590.0,116580.0,0.1200035]
[1758276669182,1.80748,116600.0,116590.0,0.11559026]
[1758276669183,1.80758,116600.0,116590.0,0.11559026]
[1758276669382,2.59028,116600.0,116590.0,0.39972595]
[1758276669579,2.59028,116600.0,116590.0,1.20972595]
[1758276669779,2.59028,116600.0,116590.0,0.91972595]
[1758276669980,2.59028,116600.0,116590.0,1.60052595]
[1758276670185,2.59028,116600.0,116590.0,1.28052595]
[1758276672385,2.60928,116600.0,116590.0,1.28152595]
[1758276672697,2.60928,116600.0,116590.0,1.29009619]
[1758276672993,2.59428,116600.0,116590.0,1.29009619]
[1758276673194,2.60228,116600.0,116590.0,1.29009619]
[1758276673682,2.60228,116600.0,116590.0,1.3175505]
[1758276673878,2.60228,116600.0,116590.0,1.58009619]
[1758276674097,2.60228,116600.0,116590.0,1.35009619]
[1758276674692,2.60228,116600.0,116590.0,1.35950824]
[1758276676998,2.60228,116600.0,116590.0,1.09696255]
[1758276677200,2.60228,116600.0,116590.0,1.35950824]
[1758276678992,2.60228,116600.0,116590.0,1.67950824]
[1758276683305,0.012,116600.0,116590.0,1.67950824]
[1758276683493,0.6776,116600.0,116590.0,1.67950824]
[1758276692404,0.6776,116600.0,116590.0,1.67950834]
[1758276692707,0.69103,116600.0,116590.0,1.01123645]
[1758276692907,0.69103,116600.0,116590.0,1.27378214]
[1758276693095,0.69103,116600.0,116590.0,1.01123645]
[1758276693302,0.69103,116600.0,116590.0,1.27378214]
[1758276693705,1.22676569,116600.0,116590.0,0.62918621]
[1758276693906,0.96422,116600.0,116590.0,0.62918621]
[1758276695507,0.96422,116600.0,116590.0,0.9050319]
[1758276699407,0.71422,116600.0,116590.0,0.9050319]
[1758276700011,0.71422,116600.0,116590.0,1.2658319]
[1758276700908,0.6776,116600.0,116590.0,1.3915581]
[1758276701100,0.6776,116600.0,116590.0,1.3058319]
[1758276703711,0.6776,116600.0,116590.0,1.30547785]
[1758276705712,0.95322164,116600.0,116590.0,1.30547785]
[1758276706209,1.22641164,116600.0,116590.0,0.93137785]
[1758276709629,0.96422,116600.0,116590.0,0.93137785]
[1758276709834,1.22641164,116600.0,116590.0,0.93137785]
[1758276710025,1.22641164,116600.0,116590.0,1.29217785]
[1758276711625,1.22641164,116600.0,116590.0,1.37790395]
[1758276712322,1.22641164,116600.0,116590.0,1.02998621]
[1758276712529,1.22641164,116600.0,116590.0,1.29217785]
[1758276712730,1.22641164,116600.0,116590.0,1.37790395]
[1758276713636,0.56081164,116600.0,116590.0,1.37790395]
[1758276713821,1.34433164,116600.0,116590.0,1.37790395]
[1758276714026,1.34433164,116600.0,116590.0,1.39118395]
[1758276714432,1.06871,116600.0,116590.0,2.89118395]
[1758276714829,1.06867,116600.0,116590.0,2.89118395]
[1758276715032,1.06859,116600.0,116590.0,3.11118395]
[1758276715234,1.06859,116600.0,116590.0,2.85118395]
[1758276718341,1.06859,116600.0,116590.0,2.95912454]
[1758276719939,1.06859,116600.0,116590.0,2.87339844]
[1758276720144,1.08253,116600.0,116590.0,2.87339844]
[1758276720443,1.06859194,116600.0,116590.0,2.87339844]
[1758276721043,1.06859194,116600.0,116590.0,2.95912464]
[1758276723341,1.06859194,116600.0,116590.0,2.51259844]
[1758276723539,1.33078358,116600.0,116590.0,2.39137785]
[1758276723847,1.44352164,116600.0,116590.0,0.30390386]
[1758276726848,1.44352164,116600.0,116590.0,0.04171222]
[1758276727047,1.44352164,116600.0,116590.0,0.30390386]
[1758276730048,1.08272164,116600.0,116590.0,0.30390386]
[1758276731851,1.08272164,116600.0,116590.0,0.38963006]
[1758276732153,1.08148164,116600.0,116590.0,0.38963006]
[1758276736153,0.81929,116600.0,116590.0,0.38963006]
[1758276736351,1.08148164,116600.0,116590.0,0.38963006]
[1758276736953,1.08148164,116600.0,116590.0,0.12743842]
[1758276737155,1.08148164,116600.0,116590.0,0.38963006]
[1758276738554,0.80507,116600.0,116590.0,1.5762217]
[1758276738749,0.80507,116600.0,116590.0,1.31403006]
[1758276738950,1.08120164,116600.0,116590.0,0.75042996]
[1758276739755,1.08120164,116600.0,116590.0,0.66470386]
[1758276740456,1.17981,116600.0,116590.0,0.04171222]
[1758276740656,1.70419328,116600.0,116590.0,0.30390386]
[1758276740851,1.70419328,116600.0,116590.0,0.04171222]
[1758276741045,1.44200164,116600.0,116590.0,0.04171222]
[1758276741247,1.44200164,116600.0,116590.0,0.30390386]
[1758276745761,1.45049721,116600.0,116590.0,0.30390386]
[1758276747062,1.44200164,116600.0,116590.0,0.30390386]
[1758276748263,1.17981,116600.0,116590.0,0.30390386]
[1758276748557,1.16555,116600.0,116590.0,0.31695386]
[1758276748757,0.80475,116600.0,116590.0,1.93288914]
[1758276748962,0.80475,116600.0,116590.0,1.65288914]
[1758276750165,0.80475,116600.0,116590.0,1.97288914]
[1758276750363,0.80475,116600.0,116590.0,1.65288914]
[1758276751063,0.80475,116600.0,116590.0,1.3906975]
[1758276751466,0.80475,116600.0,116590.0,0.81850586]
[1758276751666,0.80475,116600.0,116590.0,0.9949714]
[1758276753368,0.81746,116600.0,116590.0,0.9949714]
[1758276755867,0.81746,116600.0,116590.0,0.9819214]
[1758276756870,0.81746,116600.0,116590.0,1.0676475]
[1758276757166,0.81746,116600.0,116590.0,1.0806975]
[1758276759266,0.81746,116600.0,116590.0,0.82875944]
[1758276760875,0.81746,116600.0,116590.0,0.5665678]
[1758276761069,0.80475,116600.0,116590.0,0.5665678]
[1758276761269,0.80475,116600.0,116590.0,0.82875944]
[1758276765676,0.02319,116600.0,116590.0,1.44875944]
[1758276765877,0.80475,116600.0,116590.0,1.44874987]
[1758276766067,0.02179,116610.0,116600.0,0.03503]
[1758276766262,1.84194,116620.0,116610.0,0.1207414]
[1758276766471,2.60997,116620.0,116610.0,0.29721207]
[1758276766774,0.80325,116620.0,116610.0,0.29915013]
[1758276767471,0.81596,116620.0,116610.0,0.29915013]
[1758276768177,0.82796,116620.0,116610.0,0.29915013]
[1758276769077,0.83096,116620.0,116610.0,0.30015013]
[1758276769877,0.81896,116620.0,116610.0,0.30015013]
[1758276770076,0.82396,116620.0,116610.0,0.30015013]
[1758276770777,0.82396,116620.0,116610.0,0.28710013]
[1758276779081,1.08614207,116620.0,116610.0,0.02491806]
[1758276779672,1.44694207,116620.0,116610.0,0.02491806]
[1758276781389,1.69694207,116620.0,116610.0,0.001]
[1758276784697,1.95912414,116620.0,116610.0,0.001]
[1758276784891,1.69694207,116620.0,116610.0,0.001]
[1758276790899,3.50358207,116620.0,116610.0,0.001]
[1758276791604,3.76576414,116620.0,116610.0,0.001]
[1758276792401,3.50358207,116620.0,116610.0,0.001]
[1758276794001,3.76576414,116620.0,116610.0,0.00293806]
[1758276795300,0.03521,116610.0,116600.0,0.0001]
[1758276795500,0.03521,116600.0,116590.0,0.0001]
[1758276795802,0.03521,116590.0,116580.0,0.02183]
[1758276796004,0.39601,116590.0,116580.0,0.02173]
[1758276796509,0.4043865,116590.0,116580.0,0.02173]
[1758276797409,0.66656857,116590.0,116580.0,0.02173]
[1758276797602,0.03521,116580.0,116570.0,0.66215135]
[1758276797799,0.03521,116580.0,116570.0,1.20779225]
[1758276798001,0.81661,116580.0,116570.0,1.20779225]
[1758276798604,0.81661,116580.0,116570.0,1.62779225]
[1758276798804,0.81661,116580.0,116570.0,1.55105135]
[1758276799217,0.80266946,116580.0,116570.0,1.55105135]
[1758276799909,0.81603946,116580.0,116570.0,1.55105135]
[1758276800107,0.81703946,116580.0,116570.0,1.55305135]
[1758276800912,0.81703946,116580.0,116570.0,1.22305135]
[1758276801120,0.81703946,116580.0,116570.0,1.23673135]
[1758276801319,0.81703946,116580.0,116570.0,1.51673135]
[1758276801623,0.02226946,116580.0,116570.0,1.60247225]
[1758276801808,0.02226946,116580.0,116570.0,1.51673135]
[1758276802117,0.80366946,116580.0,116570.0,1.51673135]
[1758276804719,0.80366946,116580.0,116570.0,1.25454928]
[1758276804917,0.80366946,116580.0,116570.0,1.51673135]
[1758276810214,0.80666946,116580.0,116570.0,1.76673135]
[1758276810410,0.02226946,116580.0,116570.0,1.76673135]
[1758276810614,0.80658946,116580.0,116570.0,1.76673135]
[1758276813924,0.79264892,116580.0,116570.0,1.76673135]
[1758276815626,0.79264892,116580.0,116570.0,1.50454928]
[1758276815826,0.79264892,116580.0,116570.0,1.76673135]
[1758276819430,0.79264892,116580.0,116570.0,1.51673135]
[1758276823422,0.79264892,116580.0,116570.0,0.94454928]
[1758276823622,1.42697099,116580.0,116570.0,0.08006928]
[1758276823829,1.66302946,116580.0,116570.0,0.02833928]
[1758276824028,1.68438946,116580.0,116570.0,0.011]
[1758276825934,1.94695653,116580.0,116570.0,0.011]
[1758276828435,0.80612,116580.0,116570.0,0.67046457]
[1758276829937,1.06849457,116580.0,116570.0,0.67046457]
[1758276831835,0.80612,116580.0,116570.0,0.67046457]
[1758276832643,0.80592,116580.0,116570.0,0.67046457]
[1758276833237,0.80592,116580.0,116570.0,0.40809]
[1758276833539,0.80592,116580.0,116570.0,0.67046457]
[1758276834538,1.06829457,116580.0,116570.0,0.67046457]
[1758276836139,0.80592,116580.0,116570.0,0.67046457]
[1758276836732,1.06829457,116580.0,116570.0,0.67046457]
[1758276837541,1.06781457,116580.0,116570.0,0.67046457]
[1758276839627,0.80544,116580.0,116570.0,0.67046457]
[1758276839834,0.80516,116580.0,116570.0,0.67046457]
[1758276841238,0.02136,116580.0,116570.0,0.67046457]
[1758276841444,0.80512,116580.0,116570.0,0.67046457]
[1758276841650,0.805,116580.0,116570.0,1.41620587]
[1758276841846,0.02136,116580.0,116570.0,1.67858044]
[1758276842037,0.80496,116580.0,116570.0,1.36858044]
[1758276842839,0.80496,116580.0,116570.0,1.10620587]
[1758276843854,0.80496,116580.0,116570.0,1.13620587]
[1758276844151,0.80496,116580.0,116570.0,1.10620587]
[1758276844551,0.80496,116580.0,116570.0,1.12620587]
[1758276845149,0.78388,116580.0,116570.0,1.95858044]
[1758276847343,0.38264,116590.0,116580.0,0.03474]
[1758276847549,1.1663,116590.0,116580.0,1.10948914]
[1758276848442,0.38254,116590.0,116580.0,1.10948914]
[1758276848643,1.1661,116590.0,116580.0,1.11648914]
[1758276849950,1.1661,116590.0,116580.0,1.11733914]
[1758276851545,1.1661,116590.0,116580.0,1.12601487]
[1758276851751,1.1661,116590.0,116580.0,0.60126573]
[1758276852049,1.1661,116590.0,116580.0,1.12601487]
[1758276852454,1.42847457,116590.0,116580.0,1.12601487]
[1758276852655,1.1661,116590.0,116580.0,1.12601487]
[1758276855654,0.8053,116590.0,116580.0,1.12601487]
[1758276855848,1.1661,116590.0,116580.0,1.12601487]
[1758276858855,0.8053,116590.0,116580.0,1.12601487]
[1758276859157,0.8053,116590.0,116580.0,1.48681487]
[1758276864455,0.02174,116590.0,116580.0,1.48681487]
[1758276864658,0.8041,116590.0,116580.0,1.48681487]
[1758276865559,0.8041,116590.0,116580.0,1.73681487]
[1758276865857,0.78236,116590.0,116580.0,2.13254887]
[1758276869355,0.78236,116590.0,116580.0,2.39492344]
[1758276869559,0.78236,116590.0,116580.0,2.13254887]
[1758276871255,0.78236,116590.0,116580.0,2.39492344]
[1758276878259,1.04473457,116590.0,116580.0,1.25576457]
[1758276878469,1.31787457,116590.0,116580.0,0.75576457]
[1758276878760,1.31787457,116590.0,116580.0,0.30496457]
[1758276878761,1.0555,116590.0,116580.0,0.30496457]
[1758276878952,1.31787457,116590.0,116580.0,0.30496457]
[1758276879362,1.06787457,116590.0,116580.0,0.30496457]
[1758276880965,0.8055,116590.0,116580.0,0.56733914]
[1758276882970,0.02314,116590.0,116580.0,0.56733914]
[1758276883161,0.80502,116590.0,116580.0,0.65307284]
[1758276883567,0.80502,116590.0,116580.0,0.56733914]
[1758276885467,0.80502,116590.0,116580.0,0.92813914]
[1758276885868,0.02314,116590.0,116580.0,1.01387284]
[1758276886168,0.80502,116590.0,116580.0,1.01387284]
[1758276887866,0.80502,116590.0,116580.0,0.75136616]
[1758276888072,0.80502,116590.0,116580.0,0.75036616]
[1758276889466,0.02314,116590.0,116580.0,0.75036616]
[1758276889670,0.02314,116590.0,116580.0,1.52260862]
[1758276889671,0.78188,116590.0,116580.0,1.52260862]
[1758276890469,0.78188,116590.0,116580.0,1.53260862]
[1758276890668,0.78188,116590.0,116580.0,1.80260862]
[1758276891072,0.78188,116590.0,116580.0,1.52260862]
[1758276895475,0.78188,116590.0,116580.0,1.85260862]
[1758276895667,0.78188,116590.0,116580.0,1.52260862]
[1758276896269,0.78188,116590.0,116580.0,1.82260862]
[1758276896469,0.78188,116590.0,116580.0,1.52260862]
[1758276896669,0.78188,116590.0,116580.0,1.86260862]
[1758276899077,0.0001,116600.0,116590.0,0.1209964]
[1758276899280,0.80517,116600.0,116590.0,0.38323886]
[1758276899575,0.80517,116600.0,116590.0,0.29751246]
[1758276900179,0.80517,116600.0,116590.0,0.03527]
[1758276900368,0.80517,116600.0,116590.0,0.29751246]
[1758276900769,1.33003246,116600.0,116590.0,0.02165]
[1758276901676,1.06879,116600.0,116590.0,0.02165]
[1758276901877,1.06879,116600.0,116590.0,0.03527]
[1758276902076,1.06879,116600.0,116590.0,0.29751246]
[1758276902679,1.06879,116600.0,116590.0,0.29836246]
[1758276903180,1.06879,116600.0,116590.0,0.36824087]
[1758276904878,1.06879,116600.0,116590.0,0.35462087]
[1758276905079,1.06879,116600.0,116590.0,0.09237841]
[1758276906374,1.33103246,116600.0,116590.0,0.09237841]
[1758276906577,1.06879,116600.0,116590.0,0.09237841]
[1758276909085,1.05605,116600.0,116590.0,0.10599841]
[1758276909381,1.05605,116600.0,116590.0,0.36824087]
[1758276913870,1.06867,116600.0,116590.0,0.36824087]
[1758276915276,1.05605,116600.0,116590.0,0.36824087]
[1758276915576,1.06867,116600.0,116590.0,0.35462087]
[1758276916177,1.06867,116600.0,116590.0,0.09237841]
[1758276916576,0.27433,116600.0,116590.0,0.10599841]
[1758276916777,1.05601,116600.0,116590.0,0.36824087]
[1758276918175,1.05601,116600.0,116590.0,0.10599841]
[1758276918381,1.05601,116600.0,116590.0,0.36824087]
[1758276919686,0.80601,116600.0,116590.0,0.36824087]
[1758276924582,0.80593,116600.0,116590.0,0.92824087]
[1758276924784,0.80593,116600.0,116590.0,0.61824087]
[1758276925782,0.80593,116600.0,116590.0,0.35599841]
[1758276925986,0.80593,116600.0,116590.0,0.61824087]
[1758276929798,0.80593,116600.0,116590.0,0.35599841]
[1758276930092,1.46222669,116600.0,116590.0,0.00085]
[1758276930286,1.71222669,116600.0,116590.0,0.00085]
[1758276936099,0.93062669,116600.0,116590.0,0.00085]
[1758276936292,1.71218669,116600.0,116590.0,0.00085]
[1758276938100,0.93062669,116600.0,116590.0,0.00085]
[1758276938503,1.71214669,116600.0,116590.0,0.00085]
[1758276939002,0.93062669,116600.0,116590.0,0.00085]
[1758276939300,1.46214669,116600.0,116590.0,0.00085]
[1758276949807,1.72449673,116600.0,116590.0,0.00085]
[1758276952101,1.19990423,116600.0,116590.0,0.00085]
[1758276952302,1.72449673,116600.0,116590.0,0.00085]
[1758276952803,0.9231925,116600.0,116590.0,0.00085]
[1758276953208,1.7046325,116600.0,116590.0,0.00085]
[1758276954310,0.9231925,116600.0,116590.0,0.00085]
[1758276954508,1.7046325,116600.0,116590.0,0.00085]
[1758276957912,0.9231925,116600.0,116590.0,0.00085]
[1758276958408,1.7045925,116600.0,116590.0,0.00085]
[1758276960714,0.3986,116600.0,116590.0,0.00085]
[1758276960916,1.7045525,116600.0,116590.0,0.00085]
[1758276963411,0.9231925,116600.0,116590.0,0.00085]
[1758276963610,1.7045525,116600.0,116590.0,0.00085]
[1758276966117,0.9231925,116600.0,116590.0,0.00085]
[1758276966415,1.7045125,116600.0,116590.0,0.00085]
[1758276966714,0.9231925,116600.0,116590.0,0.00085]
[1758276966916,1.7045125,116600.0,116590.0,0.00085]
[1758276968417,0.3986,116600.0,116590.0,0.00085]
[1758276968615,1.7045125,116600.0,116590.0,0.00085]
[1758276970313,3.5114725,116600.0,116590.0,0.00085]
[1758276981422,2.7301525,116600.0,116590.0,0.00085]
[1758276981633,3.5113125,116600.0,116590.0,0.00085]
[1758276982526,2.7301525,116600.0,116590.0,0.00085]
[1758276982727,2.98668,116600.0,116590.0,0.00085]
[1758276982927,3.5112725,116600.0,116590.0,0.00085]
[1758276989434,3.77356875,116600.0,116590.0,0.00085]
[1758276989735,3.79966177,116600.0,116590.0,0.00085]
[1758276990125,3.77356875,116600.0,116590.0,0.00085]
[1758276994240,4.02356875,116600.0,116590.0,0.00085]
[1758276998742,3.24244875,116600.0,116590.0,0.00085]
[1758276999036,4.02344875,116600.0,116590.0,0.00085]
[1758276999441,3.77344875,116600.0,116590.0,0.00085]
[1758277009848,3.24894166,116600.0,116590.0,0.00085]
[1758277016354,3.51132332,116600.0,116590.0,0.00085]
[1758277016854,3.24894166,116600.0,116590.0,0.00085]
[1758277017452,2.20556,116600.0,116590.0,0.00085]
[1758277017653,3.24878166,116600.0,116590.0,0.00085]
[1758277018356,3.27678832,116600.0,116590.0,0.00085]
[1758277018857,3.27678832,116600.0,116590.0,1e-07]
[1758277019257,0.1220365,116590.0,116580.0,0.0001]
[1758277019462,0.1139538,116580.0,116570.0,0.02293]
[1758277019650,1.51973546,116580.0,116570.0,0.02283]
[1758277020553,0.73713546,116580.0,116570.0,0.02283]
[1758277020747,1.51969546,116580.0,116570.0,0.02283]
[1758277022252,1.52069546,116580.0,116570.0,0.02583]
[1758277022960,1.52069546,116580.0,116570.0,0.03283]
[1758277023258,1.52946224,116580.0,116570.0,0.03283]
[1758277023554,1.52946224,116580.0,116570.0,0.02583]
[1758277023760,1.53246224,116580.0,116570.0,0.02583]
[1758277024160,1.53146224,116580.0,116570.0,0.02283]
[1758277024461,1.53446224,116580.0,116570.0,0.02383]
[1758277025647,0.75190224,116580.0,116570.0,0.02383]
[1758277025850,1.53406224,116580.0,116570.0,0.02383]
[1758277028361,0.75190224,116580.0,116570.0,0.02383]
[1758277028558,1.53382224,116580.0,116570.0,0.02383]
[1758277036058,0.4807538,116580.0,116570.0,0.29923166]
[1758277036263,0.4757038,116580.0,116570.0,0.54923166]
[1758277036458,1.2573038,116580.0,116570.0,0.54923166]
[1758277036761,0.8965038,116580.0,116570.0,0.99577276]
[1758277038463,0.1149038,116580.0,116570.0,0.99577276]
[1758277038663,0.8963438,116580.0,116570.0,1.34577276]
[1758277039067,0.1149038,116580.0,116570.0,0.99577276]
[1758277039270,0.8963838,116580.0,116570.0,0.99577276]
[1758277039867,0.8963838,116580.0,116570.0,0.7333911]
[1758277040066,0.8963838,116580.0,116570.0,0.99577276]
[1758277041969,1.16381546,116580.0,116570.0,0.38463]
[1758277042165,2.03699712,116580.0,116570.0,1e-07]
[1758277042768,0.0992112,116570.0,116560.0,1e-07]
[1758277042966,0.95338689,116570.0,116560.0,1e-07]
[1758277043468,1.20338689,116570.0,116560.0,1e-07]
[1758277044467,1.20438689,116570.0,116560.0,1e-07]
[1758277045469,1.46676855,116570.0,116560.0,1e-07]
[1758277046266,1.20438689,116570.0,116560.0,1e-07]
[1758277046976,1.27320036,116570.0,116560.0,1e-07]
[1758277047167,1.41560036,116570.0,116560.0,1e-07]
[1758277047367,1.27320036,116570.0,116560.0,1e-07]
[1758277048674,1.53558202,116570.0,116560.0,1e-07]
[1758277056386,0.1210085,116560.0,116550.0,1e-07]
[1758277056681,1.52527016,116560.0,116550.0,1e-07]
[1758277056875,1.78765182,116560.0,116550.0,1e-07]
[1758277057777,0.1075606,116530.0,116520.0,0.38411481]
[1758277057980,0.8886406,116530.0,116520.0,0.64411481]
[1758277059381,0.8886406,116530.0,116520.0,0.64511481]
[1758277060683,0.8886406,116530.0,116520.0,0.64811481]
[1758277060886,0.8886406,116530.0,116520.0,1.00891481]
[1758277060887,0.0857706,116530.0,116520.0,1.00891481]
[1758277061084,0.8668506,116530.0,116520.0,1.00891481]
[1758277061989,0.8668506,116530.0,116520.0,1.64469281]
[1758277062986,0.0857706,116530.0,116520.0,1.64469281]
[1758277063187,0.8668506,116530.0,116520.0,1.64469281]
[1758277064787,0.8668506,116530.0,116520.0,1.38231115]
[1758277064979,0.8668506,116530.0,116520.0,1.64469281]
[1758277066584,0.8668506,116530.0,116520.0,1.66469281]
[1758277068088,0.0857706,116530.0,116520.0,1.66469281]
[1758277068291,0.8668506,116530.0,116520.0,1.66469281]
[1758277070583,0.8668906,116530.0,116520.0,1.93469281]
[1758277070885,0.85294414,116530.0,116520.0,1.64469281]
[1758277071582,0.0857567,116550.0,116540.0,0.1205933]
[1758277071788,0.8668767,116550.0,116540.0,1.3361191]
[1758277071984,0.8668767,116550.0,116540.0,1.2503558]
[1758277072384,0.8668767,116550.0,116540.0,1.3361191]
[1758277073089,0.8698767,116550.0,116540.0,1.3371191]
[1758277074893,0.8668767,116550.0,116540.0,1.3361191]
[1758277075093,0.8688767,116550.0,116540.0,1.3361191]
[1758277075392,0.8718767,116550.0,116540.0,1.3361191]
[1758277075890,0.8688767,116550.0,116540.0,1.3361191]
[1758277076091,0.8668767,116550.0,116540.0,1.3401191]
[1758277078191,0.8668767,116550.0,116540.0,0.8153933]
[1758277078393,0.8668767,116550.0,116540.0,1.3401191]
[1758277078692,0.8668767,116550.0,116540.0,0.8153933]
[1758277078892,0.8668767,116550.0,116540.0,1.3401191]
[1758277079586,0.8668767,116550.0,116540.0,1.6201191]
[1758277081689,0.8668767,116550.0,116540.0,1.3401191]
[1758277081888,0.8668767,116550.0,116540.0,1.2543558]
[1758277082690,0.8668767,116550.0,116540.0,1.3401191]
[1758277088604,0.8668767,116550.0,116540.0,0.6311929]
[1758277088605,1.1508996,116550.0,116540.0,0.6311929]
[1758277088795,1.1508996,116550.0,116540.0,0.9919929]
[1758277090589,1.1508996,116550.0,116540.0,0.72963]
[1758277090793,1.1508996,116550.0,116540.0,0.9919929]
[1758277094200,1.1508996,116550.0,116540.0,0.6619929]
[1758277094402,1.1508996,116550.0,116540.0,0.6719929]
[1758277097914,1.1508996,116550.0,116540.0,0.40963]
[1758277098216,1.1508996,116550.0,116540.0,0.6719929]
[1758277100402,1.1369549,116550.0,116540.0,0.6719929]
[1758277107509,1.1369549,116550.0,116540.0,0.3111929]
[1758277107813,1.1369549,116550.0,116540.0,0.9919929]
[1758277110005,1.1369549,116550.0,116540.0,0.72963]
[1758277110315,1.1369549,116550.0,116540.0,0.9919929]
[1758277111819,1.1369549,116550.0,116540.0,0.6311929]
[1758277112217,1.1369549,116550.0,116540.0,0.36883]
[1758277112921,1.1500949,116550.0,116540.0,0.35582]
[1758277113822,1.4000949,116550.0,116540.0,0.35582]
[1758277114922,1.7608949,116550.0,116540.0,0.35582]
[1758277116919,0.9797749,116550.0,116540.0,0.35582]
[1758277117120,1.7604949,116550.0,116540.0,0.35582]
[1758277117424,1.7604949,116550.0,116540.0,0.3689]
[1758277118327,1.7604949,116550.0,116540.0,0.6312629]
[1758277119029,1.7604949,116550.0,116540.0,0.3689]
[1758277119423,1.5104949,116550.0,116540.0,0.3689]
[1758277119928,1.1496949,116550.0,116540.0,0.3689]
[1758277120129,1.1365549,116550.0,116540.0,0.3689]
[1758277121832,1.1365549,116550.0,116540.0,0.6312629]
[1758277123043,1.1365549,116550.0,116540.0,0.9920629]
[1758277123246,1.1365149,116550.0,116540.0,0.9920629]
[1758277124247,1.1365149,116550.0,116540.0,0.6312629]
[1758277125247,1.1365149,116550.0,116540.0,0.3689]
[1758277125546,1.12256985,116550.0,116540.0,0.6312629]
[1758277130148,1.12256985,116550.0,116540.0,0.6312629]
[1758277132938,1.12256985,116550.0,116540.0,0.3689]
[1758277133144,1.12256985,116550.0,116540.0,0.6312629]
[1758277133951,1.12265518,116550.0,116540.0,0.3689]
[1758277134139,0.86020695,116550.0,116540.0,0.3689]
[1758277134343,1.12265518,116550.0,116540.0,0.3689]
[1758277139550,0.02166,116550.0,116540.0,0.63134823]
[1758277139753,0.8879757,116550.0,116540.0,0.63134823]
[1758277140153,0.8879757,116550.0,116540.0,0.71711123]
[1758277142055,0.8879757,116550.0,116540.0,1.03711123]
[1758277142254,0.12896205,116560.0,116550.0,0.1219657]
[1758277142452,0.8893883,116560.0,116550.0,0.38441393]
[1758277142653,0.80364,116560.0,116550.0,1.25521393]
[1758277142852,0.8893883,116560.0,116550.0,1.25521393]
[1758277143454,0.8913883,116560.0,116550.0,1.25521393]
[1758277144256,0.87744517,116560.0,116550.0,1.25521393]
[1758277144454,0.01117687,116560.0,116550.0,1.25521393]
[1758277144661,0.79169687,116560.0,116550.0,1.25521393]